fUST/lending_fUST_20240629
["ID","MTS","AMOUNT","RATE_DAILY","PERIOD"]
[330594202,1719605448904,-500.0,0.00019178,2]
[330594203,1719605448914,-500.0,0.00019178,2]
[330594204,1719605448924,-500.0,0.00019178,2]
[330594205,1719605448933,-500.0,0.00019178,2]
[330594206,1719605448943,-500.0,0.00019178,2]
[330594207,1719605448953,-500.0,0.00019178,2]
[330594208,1719605448962,-500.0,0.00019178,2]
[330594209,1719605448972,-500.0,0.00019178,2]
[330594210,1719605448983,-500.0,0.00019178,2]
[330594211,1719605448995,-500.0,0.00019178,2]
[330594212,1719605449005,-500.0,0.00019178,2]
[330594213,1719605449014,-500.0,0.00019178,2]
[330594214,1719605449024,-500.0,0.00019178,2]
[330594215,1719605449034,-500.0,0.00019178,2]
[330594216,1719605449043,-280.14794868,0.00019178,2]
[330594217,1719605449053,-500.0,0.00019178,2]
[330594218,1719605449062,-277.47855806,0.00019178,2]
[330594219,1719605449072,-500.0,0.00019178,2]
[330594220,1719605449082,-500.0,0.00019178,2]
[330594221,1719605449091,-345.63781343,0.00019178,2]
[330594222,1719605449102,-500.0,0.00019178,2]
[330594223,1719605449111,-355.20314054,0.00019178,2]
[330594224,1719605449121,-156.41746756,0.00019178,2]
[330594225,1719605449130,-500.0,0.00019178,2]
[330594226,1719605449139,-500.0,0.00019178,2]
[330594227,1719605449149,-500.0,0.00019178,2]
[330594228,1719605449157,-500.0,0.00019178,2]
[330594229,1719605449166,-500.0,0.00019178,2]
[330594230,1719605449175,-500.0,0.00019178,2]
[330594231,1719605449185,-500.0,0.00019178,2]
[330594232,1719605449194,-500.0,0.00019178,2]
[330594233,1719605449204,-500.0,0.00019178,2]
[330594234,1719605449213,-151.0,0.00019178,2]
[330594235,1719605449222,-151.0,0.00019178,2]
[330594236,1719605449232,-151.0,0.00019178,2]
[330594237,1719605449244,-151.0,0.00019178,2]
[330594238,1719605449253,-151.0,0.00019178,2]
[330594239,1719605449263,-151.0,0.00019178,2]
[330594240,1719605449272,-151.0,0.00019178,2]
[330594241,1719605449281,-249.993789,0.00019178,2]
[330594242,1719605449290,-174.751306,0.00019178,2]
[330594243,1719605449300,-170.083229,0.00019178,2]
[330594244,1719605449309,-309.987727,0.00019178,2]
[330594245,1719605449317,-620.98451765,0.00019612,2]
[330594246,1719605449326,-216.2515982,0.00019999,2]
[330594247,1719605449335,-293.04302917,0.0002,2]
[330594248,1719605449344,-154.83742071,0.0002,2]
[330594249,1719605449353,-154.83742071,0.0002,2]
[330594250,1719605449362,-1757.37873944,0.0002,2]
[330594251,1719605449371,-20862.28445639,0.0002,2]
[330594252,1719605449395,-908.757849,0.0002,2]
[330594253,1719605449406,-5146.7572421,0.0002,2]
[330594254,1719605449416,-6703.06069526,0.0002,2]
[330594255,1719605449427,-313.56105252,0.0002,2]
[330594256,1719605449438,-5317.39670246,0.0002,2]
[330594258,1719605572722,159.39604936,0.00014999,2]
[330594261,1719605830144,166.666666,0.00014904,2]
[330594262,1719605927928,555.1559245,0.00014999,2]
[330594263,1719606478474,166.666666,0.00014904,2]
[330594296,1719606631835,-732.8827837,0.00015673,2]
[330594297,1719606631845,-300.0,0.00016049,2]
[330594298,1719606631855,-300.0,0.00016049,2]
[330594299,1719606631864,-1659.71139715,0.0001605,2]
[330594300,1719606631875,-899.29,0.0001605,2]
[330594331,1719606637764,-22340.99860285,0.0001605,2]
[330594332,1719606637773,-1643.7081609,0.00016155,2]
[330594333,1719606637782,-14721.60099037,0.00016255,2]
[330594334,1719606637794,-1538.7419853,0.00016255,2]
[330594340,1719606639982,-2379.09161277,0.00016255,2]
[330594350,1719606642920,-5758.96580381,0.00016255,2]
[330594351,1719606643002,-408.1224925,0.00016255,2]
[330594352,1719606643016,-3742.20235375,0.00016255,2]
[330594370,1719606800565,150.80395486,0.00021764,30]
[330594373,1719606891693,2824.23165146,0.00015,2]
[330594374,1719606895669,3011.70546995,0.00014999,2]
[330594376,1719606919558,598.04930631,0.00014999,2]
[330594377,1719606920096,704.78031512,0.00014999,2]
[330594378,1719606925924,164.04060289,0.00014999,2]
[330594379,1719606930460,155.02402872,0.00014999,2]
[330594380,1719606931603,286.45866748,0.00014999,2]
[330594381,1719606932905,267.84334631,0.00014999,2]
[330594382,1719606935250,864.91777476,0.00014999,2]
[330594383,1719606937061,285.30430484,0.00014999,2]
[330594384,1719606938008,553.25140067,0.00014999,2]
[330594385,1719606940906,491.33508365,0.00014999,2]
[330594388,1719606948888,212.02110912,0.00014999,2]
[330594389,1719606949073,155.31154211,0.00014999,2]
[330594390,1719606949855,282.93616103,0.00014999,2]
[330594391,1719606951237,195.47966853,0.00014999,2]
[330594392,1719606952348,1824.64928227,0.00015,2]
[330594393,1719606959043,1284.76673272,0.00014999,2]
[330594394,1719606965619,236.60958914,0.00014999,2]
[330594395,1719606967848,318.0694556,0.00014999,2]
[330594396,1719606969663,248.32498319,0.00014999,2]
[330594397,1719606973938,154.83742071,0.00014999,2]
[330594398,1719606979753,159.44096684,0.00014999,2]
[330594399,1719606982096,1759.4166842,0.00014999,2]
[330594400,1719606986614,175.89790425,0.00014999,2]
[330594401,1719606990200,288.40019077,0.00014999,2]
[330594402,1719606992158,528.63416526,0.00014999,2]
[330594403,1719606993465,978.79985306,0.00014999,2]
[330594404,1719606993649,1313.011853,0.00014999,2]
[330594408,1719607051183,166.666666,0.00014904,2]
[330594409,1719607098569,597.70544221,0.00014999,2]
[330594410,1719607124760,502.12708894,0.00026,120]
[330594412,1719607129785,159.35113188,0.00014999,2]
[330594413,1719607146555,1759.4166842,0.00014999,2]
[330594417,1719607200677,248.32498319,0.00014999,2]
[330594418,1719607217700,248.32498319,0.00014999,2]
[330594421,1719607308546,916.65609247,0.00014999,2]
[330594423,1719607387723,154.80649189,0.00014999,2]
[330594425,1719607464616,916.65609247,0.00014999,2]
[330594426,1719607494559,916.65609247,0.00014999,2]
[330594427,1719607533703,154.80649189,0.00014999,2]
[330594429,1719607574708,166.666666,0.00014904,2]
[330594434,1719607631158,-701.77959223,0.000161,2]
[330594435,1719607631178,-300.0,0.00016254,2]
[330594436,1719607631200,-298.0,0.00016254,2]
[330594437,1719607631220,-13653.03539494,0.00016255,2]
[330594438,1719607631239,-154.80649189,0.00016255,2]
[330594439,1719607631259,-916.65609247,0.00016255,2]
[330594440,1719607631279,-276.23399711,0.0001682,2]
[330594441,1719607631298,-232.246075,0.00017001,2]
[330594442,1719607631318,-24900.0,0.00017409,2]
[330594443,1719607631338,-254.68636856,0.00018,2]
[330594444,1719607631357,-204.6626664,0.00018,2]
[330594445,1719607631376,-772.0,0.00018054,2]
[330594446,1719607631396,-151.0,0.000185,2]
[330594447,1719607631415,-154.80649189,0.00018798,2]
[330594448,1719607631433,-202.30993732,0.00018798,2]
[330594449,1719607631453,-242.84775224,0.00018798,2]
[330594450,1719607631472,-825.92070736,0.00018798,2]
[330594451,1719607631492,-154.83742071,0.00018798,2]
[330594452,1719607631511,-17236.27288962,0.00018899,2]
[330594453,1719607631530,-561.36338273,0.000189,2]
[330594454,1719607631551,-197.0122384,0.00019,2]
[330594455,1719607631570,-250.0,0.00019041,2]
[330594456,1719607631595,-51085.80050475,0.00019157,7]
[330594457,1719607631616,-12781.51535213,0.00019158,2]
[330594488,1719607832307,-799.258,0.00016255,2]
[330594489,1719607832320,-819.09999391,0.00016255,2]
[330594490,1719607832332,-794.36569708,0.00016255,2]
[330594542,1719607838141,-11140.16328,0.00016255,2]
[330594544,1719607838153,-7635.1321734,0.00016255,2]
[330594545,1719607838163,-772.0,0.00018344,2]
[330594546,1719607838172,-17236.27288962,0.00018899,2]
[330594547,1719607838182,-374.24225516,0.000189,2]
[330594548,1719607838192,-250.0,0.00019041,2]
[330594549,1719607838203,-572.11256753,0.00019178,2]
[330594551,1719607838212,-500.0,0.00019178,2]
[330594553,1719607838222,-284.06740561,0.00019178,2]
[330594555,1719607838232,-276.92092628,0.00019178,2]
[330594557,1719607838242,-500.0,0.00019178,2]
[330594558,1719607838252,-490.65106447,0.00019178,2]
[330594559,1719607838262,-500.0,0.00019178,2]
[330594560,1719607838271,-221.92487165,0.00019178,2]
[330594561,1719607838281,-500.0,0.00019178,2]
[330594562,1719607838291,-500.0,0.00019178,2]
[330594563,1719607838301,-500.0,0.00019178,2]
[330594564,1719607838310,-500.0,0.00019178,2]
[330594565,1719607838320,-500.0,0.00019178,2]
[330594566,1719607838329,-500.0,0.00019178,2]
[330594567,1719607838339,-500.0,0.00019178,2]
[330594568,1719607838349,-500.0,0.00019178,2]
[330594569,1719607838359,-500.0,0.00019178,2]
[330594570,1719607838368,-500.0,0.00019178,2]
[330594571,1719607838378,-500.0,0.00019178,2]
[330594572,1719607838387,-174.751306,0.00019178,2]
[330594573,1719607838397,-170.083229,0.00019178,2]
[330594574,1719607838407,-196.325558,0.00019178,2]
[330594575,1719607838417,-1438.24464077,0.00019293,2]
[330594576,1719607838426,-306.0,0.000193,2]
[330594577,1719607838436,-153.0,0.00019304,2]
[330594578,1719607838445,-153.0,0.00019391,2]
[330594579,1719607838455,-153.0,0.00019394,2]
[330594580,1719607838465,-153.0,0.00019394,2]
[330594581,1719607838475,-153.0,0.00019394,2]
[330594582,1719607838484,-153.0,0.00019394,2]
[330594583,1719607838494,-153.0,0.00019394,2]
[330594584,1719607838503,-153.0,0.00019394,2]
[330594585,1719607838513,-153.0,0.00019394,2]
[330594586,1719607838523,-153.0,0.00019394,2]
[330594587,1719607838533,-153.0,0.00019452,2]
[330594588,1719607838543,-153.0,0.000195,2]
[330594589,1719607838552,-310.8178561,0.00019534,2]
[330594590,1719607838561,-621.13184057,0.00019562,2]
[330594591,1719607838571,-153.0,0.000196,2]
[330594592,1719607838580,-155.04636166,0.00019703,2]
[330594593,1719607838589,-153.0,0.00019726,2]
[330594594,1719607838599,-153.0,0.00019726,2]
[330594595,1719607838609,-153.0,0.00019726,2]
[330594596,1719607838618,-153.0,0.00019726,2]
[330594597,1719607838627,-153.0,0.00019726,2]
[330594598,1719607838637,-153.0,0.000198,2]
[330594599,1719607838651,-2000.0,0.000199,2]
[330594600,1719607838660,-500.0,0.00019989,2]
[330594601,1719607838669,-407.89348036,0.00019989,2]
[330594602,1719607838679,-500.0,0.00019989,2]
[330594603,1719607838689,-166.77479697,0.00019989,2]
[330594604,1719607838699,-476.63825024,0.00019989,2]
[330594605,1719607838708,-500.0,0.00019989,2]
[330594606,1719607838717,-321.15303808,0.00019989,2]
[330594607,1719607838729,-500.0,0.00019989,2]
[330594609,1719607838739,-500.0,0.00019989,2]
[330594610,1719607838747,-619.9789731,0.00019989,2]
[330594611,1719607838757,-500.0,0.00019989,2]
[330594612,1719607838766,-500.0,0.00019989,2]
[330594613,1719607838776,-500.0,0.00019989,2]
[330594614,1719607838786,-500.0,0.00019989,2]
[330594615,1719607838795,-500.0,0.00019989,2]
[330594616,1719607838910,-500.0,0.00019989,2]
[330594617,1719607838919,-500.0,0.00019989,2]
[330594618,1719607838928,-500.0,0.00019989,2]
[330594619,1719607838937,-500.0,0.00019989,2]
[330594620,1719607838946,-429.25464263,0.00019989,2]
[330595301,1719607846548,-70.74535737,0.00019989,2]
[330595303,1719607846558,-500.0,0.00019989,2]
[330595305,1719607846568,-500.0,0.00019989,2]
[330595307,1719607846577,-500.0,0.00019989,2]
[330595309,1719607846587,-500.0,0.00019989,2]
[330595311,1719607846596,-500.0,0.00019989,2]
[330595313,1719607846605,-500.0,0.00019989,2]
[330595315,1719607846613,-500.0,0.00019989,2]
[330595317,1719607846622,-500.0,0.00019989,2]
[330595319,1719607846631,-500.0,0.00019989,2]
[330595321,1719607846641,-500.0,0.00019989,2]
[330595323,1719607846655,-500.0,0.00019989,2]
[330595324,1719607846664,-500.0,0.00019989,2]
[330595326,1719607846674,-500.0,0.00019989,2]
[330595328,1719607846683,-500.0,0.00019989,2]
[330595330,1719607846692,-206.958691,0.0001999,2]
[330595332,1719607846702,-151.0,0.0001999,2]
[330595334,1719607846712,-151.0,0.0001999,2]
[330595336,1719607846722,-210.779414,0.0001999,2]
[330595338,1719607846733,-155.69982,0.0001999,2]
[330595340,1719607846742,-31540.80120188,0.0001999,2]
[330595343,1719607846766,-48460.75201672,0.0001999,2]
[330595345,1719607846775,-15150.17676139,0.0002,7]
[330595347,1719607846784,-25542.90025237,0.0002,7]
[330595349,1719607846794,-60748.18200227,0.0002,2]
[330595351,1719607846803,-435.0,0.0002,2]
[330595353,1719607846814,-3882.56982428,0.0002,2]
[330595355,1719607846823,-154.82195475,0.0002,2]
[330595357,1719607846832,-154.80649189,0.0002,2]
[330595359,1719607846842,-225.44709256,0.0002,2]
[330595361,1719607846852,-1464.48228286,0.0002,2]
[330595363,1719607846861,-244.83183127,0.0002,2]
[330595365,1719607846871,-293.04302917,0.0002,2]
[330595367,1719607846880,-190.23086137,0.0002,2]
[330595369,1719607846889,-151.0,0.0002,2]
[330595371,1719607846899,-151.0,0.0002,2]
[330595373,1719607846908,-151.31843755,0.0002,2]
[330595374,1719607846917,-80001.5532186,0.00020092,2]
[330595376,1719607846926,-151.0,0.00020092,2]
[330595378,1719607846935,-151.0,0.00020092,2]
[330595380,1719607846944,-151.0,0.00020092,2]
[330595382,1719607846954,-293.26648,0.00020092,2]
[330595384,1719607846964,-151.0,0.00020092,2]
[330595386,1719607846974,-151.0,0.00020092,2]
[330595388,1719607846984,-30000.0,0.00020102,2]
[330595390,1719607846993,-1438.24464074,0.00020241,2]
[330595392,1719607847002,-153.0,0.00020356,2]
[330595394,1719607847012,-153.0,0.00020356,2]
[330595396,1719607847021,-153.0,0.00020356,2]
[330595398,1719607847031,-153.0,0.00020356,2]
[330595400,1719607847041,-153.0,0.00020356,2]
[330595402,1719607847050,-279.8496184,0.00020356,2]
[330595404,1719607847060,-153.0,0.00020508,2]
[330595406,1719607847070,-620.05659203,0.00020541,2]
[330595408,1719607847079,-306.0,0.00020548,2]
[330595409,1719607847088,-153.0,0.00020548,2]
[330595411,1719607847098,-498.2,0.00020781,2]
[330595412,1719607847107,-153.0,0.00020822,2]
[330595413,1719607847117,-357.2956395,0.00020822,2]
[330595414,1719607847126,-153.0,0.00020822,2]
[330595415,1719607847135,-153.0,0.00020822,2]
[330595416,1719607847144,-153.0,0.00020822,2]
[330595417,1719607847154,-153.0,0.00020822,2]
[330595418,1719607847163,-153.0,0.00020822,2]
[330595419,1719607847172,-205.8950775,0.00020822,2]
[330595420,1719607847181,-153.0,0.00020822,2]
[330595421,1719607847191,-153.0,0.00020822,2]
[330595422,1719607847199,-205.8950775,0.00020822,2]
[330595423,1719607847208,-153.0,0.00020822,2]
[330595424,1719607847217,-153.0,0.00020822,2]
[330595425,1719607847225,-153.0,0.00020822,2]
[330595426,1719607847234,-153.0,0.00020822,2]
[330595427,1719607847243,-435.6947812,0.00020822,2]
[330595428,1719607847252,-151.0,0.00020822,2]
[330595429,1719607847261,-151.0,0.00020822,2]
[330595430,1719607847270,-151.0,0.00020822,2]
[330595431,1719607847279,-151.0,0.00020822,2]
[330595432,1719607847288,-500.0,0.00020917,7]
[330595433,1719607847298,-500.0,0.00020917,7]
[330595434,1719607847307,-500.0,0.00020917,7]
[330595435,1719607847316,-500.0,0.00020917,7]
[330595436,1719607847325,-500.0,0.00020917,7]
[330595437,1719607847334,-500.0,0.00020917,7]
[330595438,1719607847343,-500.0,0.00020917,7]
[330595439,1719607847352,-500.0,0.00020917,7]
[330595440,1719607847362,-500.0,0.00020917,7]
[330595441,1719607847373,-500.0,0.00020917,7]
[330595442,1719607847383,-500.0,0.00020917,7]
[330595443,1719607847395,-500.0,0.00020917,7]
[330595444,1719607847404,-500.0,0.00020917,7]
[330595445,1719607847414,-500.0,0.00020917,7]
[330595446,1719607847423,-500.0,0.00020917,7]
[330595447,1719607847432,-500.0,0.00020917,7]
[330595449,1719607847441,-500.0,0.00020917,7]
[330595451,1719607847451,-500.0,0.00020917,7]
[330595453,1719607847460,-500.0,0.00020917,7]
[330595455,1719607847470,-500.0,0.00020917,7]
[330595457,1719607847480,-500.0,0.00020917,7]
[330595459,1719607847491,-500.0,0.00020917,7]
[330595461,1719607847499,-500.0,0.00020917,7]
[330595463,1719607847509,-500.0,0.00020917,7]
[330595464,1719607847518,-327.98,0.00020917,7]
[330595467,1719607847528,-500.0,0.00020917,7]
[330595468,1719607847539,-151.0,0.00020917,2]
[330595470,1719607847548,-300.344415,0.00020917,2]
[330595472,1719607847557,-300.344415,0.00020917,2]
[330595474,1719607847567,-153.0,0.00020959,2]
[330595476,1719607847577,-153.0,0.00020959,2]
[330595478,1719607847586,-153.0,0.00020959,2]
[330595480,1719607847596,-153.0,0.00020959,2]
[330595482,1719607847605,-300.344415,0.0002098,2]
[330595484,1719607847614,-300.344415,0.0002098,2]
[330595486,1719607847623,-80001.5532186,0.0002098,2]
[330595488,1719607847633,-257.17475982,0.00021,2]
[330595490,1719607847642,-231.86485605,0.00021,2]
[330595492,1719607847655,-10092.76374585,0.00021,2]
[330595494,1719607847665,-154.83742071,0.00021,2]
[330595496,1719607847674,-525.46798099,0.00021,2]
[330595498,1719607847683,-404.0,0.00021,2]
[330595500,1719607847694,-150.0,0.00021,2]
[330595502,1719607847703,-201.6118725,0.00021,2]
[330595512,1719607847793,-916.65609247,0.00021095,2]
[330595514,1719607847802,-462.877676,0.00021096,2]
[330595516,1719607847811,-306.0,0.00021096,2]
[330595517,1719607847822,-411.6568572,0.00021096,2]
[330595520,1719607847831,-153.0,0.00021096,2]
[330595522,1719607847840,-205.8284286,0.00021096,2]
[330595523,1719607847850,-153.0,0.00021096,2]
[330595526,1719607847859,-153.0,0.00021096,2]
[330595527,1719607847869,-205.8284286,0.00021096,2]
[330595529,1719607847879,-153.0,0.00021096,2]
[330595532,1719607847889,-153.0,0.00021096,2]
[330595533,1719607847899,-159.0174166,0.00021096,2]
[330595535,1719607847908,-1438.24464074,0.00021188,2]
[330595537,1719607847917,-501.66525987,0.000212,2]
[330595539,1719607847929,-1000.0,0.000212,2]
[330595541,1719607847938,-772.0,0.00021344,2]
[330595543,1719607847948,-151.0,0.00021489,2]
[330595545,1719607847957,-249.993785,0.00021489,2]
[330595547,1719607847966,-160.256295,0.00021489,2]
[330595549,1719607847975,-151.0,0.00021489,2]
[330595551,1719607847987,-151.0,0.00021489,2]
[330595553,1719607847996,-3000.0,0.000215,2]
[330595555,1719607848011,-3000.0,0.0002151,2]
[330595557,1719607848020,-1000.0,0.0002151,2]
[330595559,1719607848029,-1000.0,0.00021511,2]
[330595561,1719607848039,-3000.0,0.0002152,2]
[330595563,1719607848050,-1000.0,0.00021528,2]
[330595565,1719607848059,-3000.0,0.0002153,2]
[330595567,1719607848070,-3000.0,0.0002154,2]
[330595569,1719607848080,-350.11901038,0.00021548,2]
[330595572,1719607848090,-3000.0,0.0002155,2]
[330595573,1719607848100,-3000.0,0.0002156,2]
[330595575,1719607848110,-620.0028296,0.00021568,2]
[330595577,1719607848119,-3000.0,0.0002157,2]
[330595579,1719607848129,-80001.5532186,0.0002157,2]
[330595581,1719607848138,-300.344415,0.0002157,2]
[330595583,1719607848147,-300.344415,0.0002157,2]
[330595585,1719607848156,-300.344415,0.0002157,2]
[330595587,1719607848166,-300.344415,0.0002157,2]
[330595589,1719607848176,-1000.0,0.00021579,2]
[330595591,1719607848185,-3000.0,0.0002158,2]
[330595593,1719607848194,-3000.0,0.0002159,2]
[330595595,1719607848204,-151.0,0.0002159,2]
[330595597,1719607848214,-3000.0,0.000216,2]
[330595599,1719607848223,-151.0,0.000216,2]
[330595601,1719607848233,-3000.0,0.0002161,2]
[330595603,1719607848242,-158.07606171,0.00021611,2]
[330595605,1719607848251,-300.0,0.00021617,2]
[330595607,1719607848260,-3000.0,0.0002162,2]
[330595609,1719607848270,-151.0,0.0002162,2]
[330595611,1719607848279,-1000.0,0.00021628,2]
[330595613,1719607848288,-3000.0,0.0002163,2]
[330595615,1719607848297,-1000.0,0.00021633,2]
[330595616,1719607848306,-3000.0,0.0002164,2]
[330595619,1719607848316,-3000.0,0.0002165,2]
[330595620,1719607848325,-3000.0,0.0002166,2]
[330595622,1719607848335,-1000.0,0.00021667,2]
[330595625,1719607848345,-3000.0,0.0002167,2]
[330595626,1719607848354,-1000.0,0.00021677,2]
[330595628,1719607848364,-3000.0,0.0002168,2]
[330595630,1719607848373,-1000.0,0.00021681,2]
[330595632,1719607848383,-3000.0,0.0002169,2]
[330595634,1719607848392,-1000.0,0.00021699,2]
[330595636,1719607848401,-3000.0,0.000217,2]
[330595638,1719607848411,-1000.0,0.000217,2]
[330595640,1719607848420,-300.344415,0.000217,2]
[330595642,1719607848430,-300.344415,0.000217,2]
[330595644,1719607848440,-300.344415,0.000217,2]
[330595646,1719607848449,-300.344415,0.000217,2]
[330595648,1719607848459,-80001.5532186,0.000217,2]
[330595650,1719607848468,-3000.0,0.0002171,2]
[330595652,1719607848477,-151.0,0.0002171,2]
[330595654,1719607848487,-3000.0,0.0002172,2]
[330595656,1719607848496,-3000.0,0.0002173,2]
[330595658,1719607848506,-920.29840418,0.00021738,2]
[330595660,1719607848515,-1000.0,0.00021739,2]
[330595662,1719607848525,-3000.0,0.0002174,2]
[330595664,1719607848534,-151.0,0.0002174,2]
[330595666,1719607848544,-3000.0,0.0002175,2]
[330595668,1719607848553,-3000.0,0.0002176,2]
[330595670,1719607848563,-3000.0,0.0002177,2]
[330595672,1719607848573,-3000.0,0.0002178,2]
[330595674,1719607848583,-3000.0,0.0002179,2]
[330595676,1719607848592,-3000.0,0.000218,2]
[330595678,1719607848601,-3000.0,0.0002181,2]
[330595680,1719607848610,-3000.0,0.0002182,2]
[330595682,1719607848619,-3000.0,0.0002183,2]
[330595684,1719607848628,-3000.0,0.0002184,2]
[330595686,1719607848638,-151.0,0.0002184,2]
[330595688,1719607848650,-300.344415,0.0002184,2]
[330595690,1719607848659,-300.344415,0.0002184,2]
[330595692,1719607848669,-3000.0,0.0002185,2]
[330595694,1719607848679,-3000.0,0.0002186,2]
[330595696,1719607848690,-3000.0,0.0002187,2]
[330595698,1719607848700,-3000.0,0.0002188,2]
[330595700,1719607848710,-3000.0,0.0002189,2]
[330595702,1719607848720,-151.0,0.0002189,2]
[330595704,1719607848729,-3198.02122022,0.000219,2]
[330595706,1719607848740,-3198.02122019,0.000219,2]
[330595708,1719607848750,-3198.02122019,0.000219,2]
[330595710,1719607848759,-3198.02122019,0.000219,2]
[330595712,1719607848770,-500.0,0.000219,2]
[330595714,1719607848779,-180.0,0.000219,2]
[330595716,1719607848788,-3000.0,0.000219,2]
[330595718,1719607848797,-3000.0,0.0002191,2]
[330595720,1719607848808,-502.88908247,0.00021917,4]
[330595722,1719607848817,-778.17,0.00021917,4]
[330595724,1719607848827,-303.06767972,0.00021917,4]
[330595726,1719607848836,-500.0,0.00021917,4]
[330595728,1719607848845,-500.0,0.00021917,4]
[330595730,1719607848855,-500.0,0.00021917,4]
[330595732,1719607848864,-500.0,0.00021917,4]
[330595734,1719607848873,-500.0,0.00021917,4]
[330595736,1719607848883,-500.0,0.00021917,4]
[330595738,1719607848892,-500.0,0.00021917,4]
[330595740,1719607848902,-237.69,0.00021917,4]
[330595742,1719607848912,-340.959037,0.00021917,4]
[330595744,1719607848921,-500.0,0.00021917,4]
[330595746,1719607848931,-1847.98,0.00021917,4]
[330595748,1719607848940,-500.0,0.00021917,4]
[330595759,1719607849033,-500.0,0.00021917,4]
[330595761,1719607849046,-500.0,0.00021917,4]
[330595763,1719607849055,-500.0,0.00021917,4]
[330595765,1719607849065,-500.0,0.00021917,4]
[330595767,1719607849074,-500.0,0.00021917,4]
[330595769,1719607849083,-500.0,0.00021917,4]
[330595771,1719607849092,-607.62,0.00021917,4]
[330595773,1719607849102,-500.0,0.00021917,4]
[330595774,1719607849111,-862.12,0.00021917,4]
[330595777,1719607849121,-500.0,0.00021917,4]
[330595778,1719607849130,-527.4015297,0.00021917,4]
[330595781,1719607849140,-500.0,0.00021917,4]
[330595782,1719607849150,-500.0,0.00021917,4]
[330595784,1719607849159,-500.0,0.00021917,4]
[330595786,1719607849169,-24118.52,0.00021917,4]
[330595788,1719607849179,-564.67324448,0.00021917,4]
[330595790,1719607849188,-500.0,0.00021917,4]
[330595792,1719607849197,-963.34,0.00021917,4]
[330595794,1719607849207,-500.0,0.00021917,2]
[330595797,1719607849216,-500.0,0.00021917,4]
[330595799,1719607849225,-500.0,0.00021917,4]
[330595800,1719607849235,-500.0,0.00021917,4]
[330595803,1719607849245,-501.15932819,0.00021917,4]
[330595804,1719607849254,-500.0,0.00021917,4]
[330595806,1719607849263,-500.0,0.00021917,4]
[330595809,1719607849273,-719.1,0.00021917,4]
[330595811,1719607849283,-500.0,0.00021917,4]
[330595812,1719607849292,-493.66526353,0.00021917,4]
[330595814,1719607849301,-500.0,0.00021917,4]
[330595816,1719607849310,-505.06950856,0.00021917,4]
[330595818,1719607849319,-175.67455458,0.00021917,4]
[330595820,1719607849329,-500.0,0.00021917,4]
[330595823,1719607849338,-500.0,0.00021917,4]
[330595825,1719607849348,-506.03596976,0.00021917,4]
[330595827,1719607849357,-500.0,0.00021917,4]
[330595829,1719607849367,-469.41348333,0.00021917,4]
[330595830,1719607849376,-500.0,0.00021917,4]
[330595833,1719607849386,-500.0,0.00021917,4]
[330595834,1719607849395,-500.0,0.00021917,4]
[330595836,1719607849404,-500.0,0.00021917,4]
[330595838,1719607849414,-500.0,0.00021917,4]
[330595840,1719607849423,-519.24013474,0.00021917,4]
[330595842,1719607849433,-507.90829656,0.00021917,4]
[330595844,1719607849442,-392.31783923,0.00021917,4]